[Event "South Island Championships 2023"]
[Site "Oamaru, New Zealand"]
[Date "????.??.??"]
[Round "6.3"]
[White "Lee, Edward S"]
[Black "Stark, John"]
[Result "1-0"]
[TimeControl "90 + 30"]
[WhiteFideId "4303229"]
[BlackFideId "4300963"]
[WhiteElo "2088"]
[BlackElo "2204"]

1. b3 {[%clk 01:30:30]} d5 {[%clk 00:00:00]} 2. Bb2 {[%clk 01:30:30]} c6 {[%clk
00:00:00]} 3. f4 {[%clk 01:31:39]} {[%emt 01:26:56]} Bf5 {[%clk 01:30:22]}
{[%emt 00:01:23]} 4. Nf3 {[%clk 01:31:14]} {[%emt 00:00:55]} e6 {[%clk
01:30:03]} {[%emt 00:00:50]} 5. e3 {[%clk 01:30:52]} {[%emt 00:00:52]} h6
{[%clk 01:30:04]} {[%emt 00:00:28]} 6. Be2 {[%clk 01:30:15]} {[%emt 00:01:07]}
Nf6 {[%clk 01:30:26]} {[%emt 00:00:09]} 7. a3 {[%clk 01:27:22]} {[%emt
00:03:23]} Nbd7 {[%clk 01:28:19]} {[%emt 00:02:37]} 8. d3 {[%clk 01:25:59]}
{[%emt 00:01:53]} Qb6 {[%clk 01:19:40]} {[%emt 00:09:09]} 9. Qd2 {[%clk
01:24:19]} {[%emt 00:02:10]} Bc5 {[%clk 01:17:10]} {[%emt 00:03:00]} 10. Nd4
{[%clk 01:23:39]} {[%emt 00:01:10]} Bh7 {[%clk 01:16:44]} {[%emt 00:00:51]} 11.
b4 {[%clk 01:23:15]} {[%emt 00:00:59]} Bd6 {[%clk 01:13:00]} {[%emt 00:04:11]}
12. g4 {[%clk 01:10:15]} {[%emt 00:13:32]} e5 {[%clk 01:10:54]} {[%emt
00:02:36]} 13. Nb3 {[%clk 01:07:44]} {[%emt 00:03:01]} O-O-O {[%clk 00:59:37]}
{[%emt 00:11:47]} 14. g5 {[%clk 01:00:35]} {[%emt 00:07:40]} hxg5 {[%clk
00:59:49]} {[%emt 00:00:18]} 15. fxg5 {[%emt 00:00:14]} Ng8 {[%clk 00:55:32]}
{[%emt 00:04:42]} 16. Nc3 {[%clk 00:58:50]} {[%emt 00:02:36]} Ne7 {[%clk
00:54:29]} {[%emt 00:01:33]} 17. O-O-O {[%clk 00:55:33]} {[%emt 00:03:46]} Bg6
{[%clk 00:41:20]} {[%emt 00:13:40]} 18. Bg4 {[%clk 00:49:10]} {[%emt 00:06:53]}
Rh4 {[%clk 00:35:13]} {[%emt 00:06:37]} 19. h3 {[%clk 00:42:22]} {[%emt
00:07:18]} Kb8 {[%clk 00:35:08]} {[%emt 00:00:36]} 20. Qf2 {[%clk 00:40:56]}
{[%emt 00:01:55]} Rhh8 {[%clk 00:34:16]} {[%emt 00:01:22]} 21. Bxd7 {[%clk
00:34:02]} {[%emt 00:07:24]} Rxd7 {[%clk 00:34:38]} {[%emt 00:00:08]} 22. Na4
{[%clk 00:34:27]} {[%emt 00:00:05]} Qc7 {[%clk 00:34:39]} {[%emt 00:00:30]} 23.
Nac5 {[%clk 00:34:30]} {[%emt 00:00:27]} Rdd8 {[%clk 00:34:37]} {[%emt
00:00:31]} 24. e4 {[%clk 00:33:37]} {[%emt 00:01:23]} d4 {[%clk 00:33:50]}
{[%emt 00:01:17]} 25. c3 {[%clk 00:32:54]} {[%emt 00:01:14]} dxc3 {[%clk
00:29:32]} {[%emt 00:04:48]} 26. Bxc3 {[%clk 00:33:17]} {[%emt 00:00:07]} Qc8
{[%clk 00:29:31]} {[%emt 00:00:30]} 27. Qg3 {[%clk 00:20:49]} {[%emt 00:12:58]}
f6 {[%clk 00:29:19]} {[%emt 00:00:43]} 28. gxf6 {[%clk 00:19:14]} {[%emt
00:02:04]} gxf6 {[%clk 00:29:46]} {[%emt 00:00:04]} 29. Rdf1 {[%clk 00:19:06]}
{[%emt 00:00:38]} Rhg8 {[%clk 00:21:11]} {[%emt 00:09:05]} 30. Qh4 {[%clk
00:15:40]} {[%emt 00:03:55]} b6 {[%clk 00:13:58]} {[%emt 00:07:43]} 31. Rxf6
{[%clk 00:09:51]} {[%emt 00:06:19]} bxc5 {[%clk 00:13:27]} {[%emt 00:01:01]} 32.
Rxd6 {[%clk 00:07:14]} {[%emt 00:03:08]} Rxd6 {[%clk 00:13:54]} {[%emt
00:00:03]} 33. Qxe7 {[%clk 00:07:17]} {[%emt 00:00:27]} Re6 {[%clk 00:03:42]}
{[%emt 00:10:41]} 34. Bxe5+ {[%clk 00:06:22]} {[%emt 00:01:25]} Ka8 {[%clk
00:04:10]} {[%emt 00:00:02]} 35. Qxc5 {[%clk 00:06:29]} {[%emt 00:00:23]} Qa6
{[%clk 00:04:02]} {[%emt 00:00:38]} 36. Bd4 {[%clk 00:05:53]} {[%emt 00:01:06]}
Qxa3+ {[%clk 00:03:17]} {[%emt 00:01:14]} 37. Kc2 {[%clk 00:06:15]} {[%emt
00:00:08]} Bxe4 {[%clk 00:03:04]} {[%emt 00:00:44]} 38. Ra1 {[%clk 00:06:18]}
{[%emt 00:00:27]} Rg2+ {[%clk 00:00:45]} {[%emt 00:02:49]} 39. Bf2 {[%clk
00:06:36]} {[%emt 00:00:12]} Bxd3+ {[%clk 00:00:32]} {[%emt 00:00:43]} 40. Kc3
{[%clk 00:06:51]} {[%emt 00:00:14]} Rxf2 {[%clk 00:00:32]} {[%emt 00:00:31]} 41.
Qxf2 {[%clk 00:06:46]} {[%emt 00:00:34]} 1-0

[Event "South Island Championships 2023"]
[Site "Oamaru, New Zealand"]
[Date "????.??.??"]
[Round "7.6"]
[White "Kerr, Atlas"]
[Black "Mayrhuber, Nikola"]
[Result "1-0"]
[TimeControl "90 + 30"]
[WhiteFideId "4319486"]
[BlackFideId "1637819"]
[WhiteElo "1853"]
[BlackElo "2059"]

1. b4 {[%clk 01:30:59]} d5 {[%clk 01:28:36]} {[%emt 00:02:25]} 2. Bb2 {[%clk
01:31:15]} {[%emt 00:00:13]} e6 {[%clk 01:28:56]} {[%emt 00:00:11]} 3. Nf3
{[%clk 01:29:57]} {[%emt 00:01:48]} Nf6 {[%clk 01:29:13]} {[%emt 00:00:12]} 4.
b5 {[%clk 01:29:59]} {[%emt 00:00:28]} a6 {[%clk 01:26:50]} {[%emt 00:02:54]} 5.
a4 {[%clk 01:25:54]} {[%emt 00:04:34]} Bd6 {[%clk 01:19:22]} {[%emt 00:07:58]}
6. e3 {[%clk 01:25:43]} {[%emt 00:00:42]} O-O {[%clk 01:17:43]} {[%emt
00:02:08]} 7. c4 {[%clk 01:20:40]} {[%emt 00:05:33]} axb5 {[%clk 01:12:37]}
{[%emt 00:05:36]} 8. cxb5 {[%clk 01:17:50]} {[%emt 00:03:20]} c5 {[%clk
01:10:37]} {[%emt 00:02:30]} 9. Be2 {[%clk 01:11:27]} {[%emt 00:06:52]} Nbd7
{[%clk 01:07:28]} {[%emt 00:03:39]} 10. d4 {[%clk 01:09:33]} {[%emt 00:02:25]}
cxd4 {[%clk 01:02:58]} {[%emt 00:04:59]} 11. exd4 {[%clk 01:09:02]} {[%emt
00:01:01]} Ne4 {[%clk 01:01:16]} {[%emt 00:02:12]} 12. O-O {[%clk 01:07:31]}
{[%emt 00:02:01]} f5 {[%clk 00:59:47]} {[%emt 00:02:00]} 13. Ne5 {[%clk
00:59:18]} {[%emt 00:08:43]} Qf6 {[%clk 00:50:09]} {[%emt 00:10:08]} 14. f3
{[%clk 00:50:08]} {[%emt 00:09:38]} Ng5 {[%clk 00:47:14]} {[%emt 00:03:26]} 15.
f4 {[%clk 00:48:14]} {[%emt 00:02:24]} Ne4 {[%clk 00:45:56]} {[%emt 00:01:47]}
16. Nd2 {[%clk 00:47:07]} {[%emt 00:01:38]} Qh6 {[%clk 00:36:25]} {[%emt
00:10:01]} 17. Nxe4 {[%clk 00:39:41]} {[%emt 00:07:56]} fxe4 {[%clk 00:36:44]}
{[%emt 00:00:10]} 18. Bc1 {[%clk 00:38:30]} {[%emt 00:01:42]} Qh4 {[%clk
00:33:42]} {[%emt 00:03:31]} 19. g3 {[%clk 00:35:32]} {[%emt 00:03:29]} Qd8
{[%clk 00:32:51]} {[%emt 00:01:21]} 20. Bd2 {[%clk 00:33:53]} {[%emt 00:02:09]}
Qb6 {[%clk 00:31:42]} {[%emt 00:01:39]} 21. Be3 {[%clk 00:28:18]} {[%emt
00:06:05]} Bb4 {[%clk 00:22:23]} {[%emt 00:09:49]} 22. Qb3 {[%clk 00:24:46]}
{[%emt 00:04:02]} Qd6 {[%clk 00:22:28]} {[%emt 00:00:25]} 23. Kg2 {[%clk
00:21:15]} {[%emt 00:04:01]} Nb6 {[%clk 00:20:03]} {[%emt 00:02:55]} 24. h4
{[%clk 00:21:11]} {[%emt 00:00:34]} Bd7 {[%clk 00:19:42]} {[%emt 00:00:51]} 25.
Rfb1 {[%clk 00:15:22]} {[%emt 00:06:19]} Ba5 {[%clk 00:20:07]} {[%emt
00:00:05]} 26. Bc1 {[%clk 00:14:58]} {[%emt 00:00:54]} Rfc8 {[%clk 00:16:16]}
{[%emt 00:04:21]} 27. Ba3 {[%clk 00:15:15]} {[%emt 00:00:13]} Qc7 {[%clk
00:15:41]} {[%emt 00:01:05]} 28. Bc5 {[%clk 00:14:42]} {[%emt 00:01:02]} Be8
{[%clk 00:15:18]} {[%emt 00:00:54]} 29. Bg4 {[%clk 00:14:30]} {[%emt 00:00:42]}
Bf7 {[%clk 00:14:28]} {[%emt 00:01:20]} 30. f5 {[%clk 00:11:23]} {[%emt
00:03:37]} exf5 {[%clk 00:12:08]} {[%emt 00:02:50]} 31. Bxf5 {[%clk 00:11:45]}
{[%emt 00:00:08]} Rd8 {[%clk 00:12:28]} {[%emt 00:00:10]} 32. Rf1 {[%clk
00:11:25]} {[%emt 00:00:50]} Nc4 {[%clk 00:09:10]} {[%emt 00:03:49]} 33. Bxh7+
{[%clk 00:09:36]} {[%emt 00:02:18]} Kxh7 {[%clk 00:09:00]} {[%emt 00:00:39]} 34.
Rxf7 {[%clk 00:09:34]} {[%emt 00:00:32]} Qc8 {[%clk 00:08:41]} {[%emt
00:00:50]} 35. Nxc4 {[%clk 00:08:03]} {[%emt 00:02:00]} dxc4 {[%clk 00:09:10]}
{[%emt 00:00:02]} 36. Qe3 {[%clk 00:08:09]} {[%emt 00:00:24]} Qe6 {[%clk
00:09:08]} {[%emt 00:00:32]} 37. Raf1 {[%clk 00:08:26]} {[%emt 00:00:13]} Qd5
{[%clk 00:05:18]} {[%emt 00:04:20]} 38. R1f5 {[%clk 00:07:36]} {[%emt
00:01:20]} Bd2 {[%clk 00:05:08]} {[%emt 00:00:40]} 39. Qe2 {[%clk 00:07:07]}
{[%emt 00:00:59]} Qe6 {[%clk 00:04:06]} {[%emt 00:01:32]} 40. Qxd2 {[%clk
00:06:26]} {[%emt 00:01:11]} e3 {[%clk 00:03:07]} {[%emt 00:01:30]} 41. Qe2
{[%clk 00:06:53]} {[%emt 00:00:03]} Kg8 {[%clk 00:01:36]} {[%emt 00:02:02]} 42.
Qg4 {[%clk 00:05:42]} {[%emt 00:01:40]} Qxf7 {[%clk 00:00:47]} {[%emt
00:01:19]} 43. Rxf7 {[%clk 00:06:04]} {[%emt 00:00:08]} Kxf7 {[%clk 00:01:14]}
{[%emt 00:00:03]} 44. Qf5+ {[%clk 00:05:24]} {[%emt 00:01:09]} Kg8 {[%clk
00:01:35]} {[%emt 00:00:09]} 45. Qe6+ {[%clk 00:05:04]} {[%emt 00:00:51]} Kh8
{[%clk 00:02:01]} {[%emt 00:00:04]} 46. Qxc4 {[%clk 00:05:21]} {[%emt
00:00:13]} 1-0

[Event "South Island Championships 2023"]
[Site "Oamaru, New Zealand"]
[Date "????.??.??"]
[Round "7.8"]
[White "McConnell, Jack"]
[Black "Carpinter, Anthony L"]
[Result "1-0"]
[TimeControl "90 + 30"]
[WhiteFideId "4321871"]
[BlackFideId "4300238"]
[WhiteElo "1640"]
[BlackElo "2217"]

1. e4 {[%clk 01:30:57]} {[%emt 00:00:02]} e6 {[%clk 01:30:49]} {[%emt
00:00:12]} 2. d4 {[%clk 01:31:21]} {[%emt 00:00:06]} d5 {[%clk 01:31:15]}
{[%emt 00:00:05]} 3. Nc3 {[%clk 01:31:45]} {[%emt 00:00:06]} Nf6 {[%clk
01:31:37]} {[%emt 00:00:07]} 4. Bg5 {[%clk 01:32:09]} {[%emt 00:00:05]} Be7
{[%clk 01:31:47]} {[%emt 00:00:21]} 5. e5 {[%clk 01:32:33]} {[%emt 00:00:06]}
Nfd7 {[%clk 01:32:10]} {[%emt 00:00:07]} 6. Bxe7 {[%clk 01:32:56]} {[%emt
00:00:08]} Qxe7 {[%clk 01:32:32]} {[%emt 00:00:08]} 7. f4 {[%clk 01:33:19]}
{[%emt 00:00:06]} a6 {[%clk 01:29:54]} {[%emt 00:03:09]} 8. Nf3 {[%clk
01:33:43]} {[%emt 00:00:06]} c5 {[%clk 01:30:14]} {[%emt 00:00:10]} 9. Bd3
{[%clk 01:34:05]} {[%emt 00:00:07]} cxd4 {[%clk 01:29:10]} {[%emt 00:01:35]} 10.
Ne2 {[%clk 01:34:25]} {[%emt 00:00:10]} Qb4+ {[%clk 01:27:45]} {[%emt
00:01:54]} 11. Qd2 {[%clk 01:34:47]} {[%emt 00:00:09]} Qxb2 {[%clk 01:27:17]}
{[%emt 00:00:58]} 12. O-O {[%clk 01:35:08]} {[%emt 00:00:08]} g6 {[%clk
01:20:39]} {[%emt 00:07:08]} 13. f5 {[%clk 01:14:03]} {[%emt 00:21:35]} gxf5
{[%clk 01:16:43]} {[%emt 00:04:26]} 14. Qh6 {[%clk 01:12:05]} {[%emt 00:02:27]}
Qa3 {[%clk 01:15:14]} {[%emt 00:02:00]} 15. Nfxd4 {[%clk 01:04:59]} {[%emt
00:07:36]} Qf8 {[%clk 01:12:37]} {[%emt 00:03:06]} 16. Qe3 {[%clk 01:01:23]}
{[%emt 00:04:06]} Nc5 {[%clk 01:12:20]} {[%emt 00:00:47]} 17. Nxf5 {[%clk
00:57:22]} {[%emt 00:04:32]} exf5 {[%clk 01:11:48]} {[%emt 00:01:02]} 18. Bxf5
{[%clk 00:57:24]} {[%emt 00:00:28]} Nc6 {[%clk 00:58:02]} {[%emt 00:14:16]} 19.
Bxc8 {[%clk 00:52:12]} {[%emt 00:05:42]} Rxc8 {[%clk 00:58:04]} {[%emt
00:00:28]} 20. Rad1 {[%clk 00:45:29]} {[%emt 00:07:13]} Rd8 {[%clk 00:51:40]}
{[%emt 00:06:54]} 21. Rf6 {[%clk 00:42:46]} {[%emt 00:03:13]} Ne6 {[%clk
00:49:35]} {[%emt 00:02:34]} 22. Rdf1 {[%clk 00:42:22]} {[%emt 00:00:54]} Qc5
{[%clk 00:46:23]} {[%emt 00:03:43]} 23. Rxe6+ {[%clk 00:42:20]} {[%emt
00:00:32]} 1-0

[Event "South Island Championships 2023"]
[Site "Oamaru, New Zealand"]
[Date "????.??.??"]
[Round "7.3"]
[White "Ong, Rommel"]
[Black "Christie, Richie"]
[Result "1-0"]
[TimeControl "90 + 30"]
[WhiteFideId "5259630"]
[BlackFideId "4307470"]
[WhiteElo "1852"]
[BlackElo "1927"]

1. e4 {[%clk 01:30:54]} {[%emt 00:00:05]} Nf6 {[%clk 01:31:00]} 2. e5 {[%clk
01:31:09]} {[%emt 00:00:15]} Nd5 {[%clk 01:31:28]} {[%emt 00:00:02]} 3. d4
{[%clk 01:31:15]} {[%emt 00:00:23]} d6 {[%clk 01:31:57]} 4. Nf3 {[%clk
01:31:27]} {[%emt 00:00:18]} dxe5 {[%clk 01:32:23]} {[%emt 00:00:05]} 5. Nxe5
{[%clk 01:31:44]} {[%emt 00:00:13]} c6 {[%clk 01:32:49]} {[%emt 00:00:04]} 6.
Qf3 {[%clk 01:27:15]} {[%emt 00:04:59]} Be6 {[%clk 01:32:23]} {[%emt 00:00:56]}
7. c3 {[%clk 01:08:33]} {[%emt 00:19:11]} g6 {[%clk 01:28:54]} {[%emt
00:03:58]} 8. Nd2 {[%clk 01:03:52]} {[%emt 00:05:13]} Bg7 {[%clk 01:25:39]}
{[%emt 00:03:44]} 9. Ne4 {[%clk 01:02:03]} {[%emt 00:02:19]} f6 {[%clk
01:17:01]} {[%emt 00:09:09]} 10. Nd3 {[%clk 00:58:45]} {[%emt 00:03:47]} Qc8
{[%clk 01:10:57]} {[%emt 00:06:35]} 11. h3 {[%clk 00:56:59]} {[%emt 00:02:16]}
O-O {[%clk 01:00:08]} {[%emt 00:11:18]} 12. Be2 {[%clk 00:53:12]} {[%emt
00:04:17]} Nd7 {[%clk 00:52:18]} {[%emt 00:08:21]} 13. Nec5 {[%clk 00:43:08]}
{[%emt 00:10:33]} Nxc5 {[%clk 00:49:09]} {[%emt 00:03:40]} 14. Nxc5 {[%clk
00:43:37]} Bf7 {[%clk 00:48:39]} {[%emt 00:01:00]} 15. O-O {[%clk 00:43:54]}
{[%emt 00:00:13]} Nc7 {[%clk 00:41:02]} {[%emt 00:08:06]} 16. Re1 {[%clk
00:40:29]} {[%emt 00:03:55]} Bd5 {[%clk 00:32:54]} {[%emt 00:08:38]} 17. Qg3
{[%clk 00:40:29]} {[%emt 00:00:30]} b6 {[%clk 00:29:23]} {[%emt 00:04:01]} 18.
Nb3 {[%clk 00:40:48]} {[%emt 00:00:12]} Qd7 {[%clk 00:28:39]} {[%emt 00:01:13]}
19. c4 {[%clk 00:38:00]} {[%emt 00:03:18]} Bf7 {[%clk 00:28:10]} {[%emt
00:01:00]} 20. Be3 {[%clk 00:38:03]} {[%emt 00:00:26]} Rae8 {[%clk 00:26:25]}
{[%emt 00:02:15]} 21. Rad1 {[%clk 00:38:14]} {[%emt 00:00:19]} f5 {[%clk
00:25:28]} {[%emt 00:01:28]} 22. Bf4 {[%clk 00:33:02]} {[%emt 00:05:41]} Ne6
{[%clk 00:23:48]} {[%emt 00:02:10]} 23. Be5 {[%clk 00:33:22]} {[%emt 00:00:10]}
Kh8 {[%clk 00:22:17]} {[%emt 00:02:00]} 24. d5 {[%clk 00:27:21]} {[%emt
00:06:32]} cxd5 {[%clk 00:19:35]} {[%emt 00:03:12]} 25. cxd5 {[%clk 00:27:43]}
{[%emt 00:00:08]} Bxe5 {[%clk 00:19:46]} {[%emt 00:00:20]} 26. Qxe5+ {[%clk
00:27:20]} {[%emt 00:00:52]} Ng7 {[%clk 00:20:14]} {[%emt 00:00:01]} 27. Bf3
{[%clk 00:26:12]} {[%emt 00:01:39]} Qa4 {[%clk 00:18:38]} {[%emt 00:02:07]} 28.
Nd4 {[%clk 00:24:58]} {[%emt 00:01:43]} Kg8 {[%clk 00:10:26]} {[%emt 00:08:43]}
29. Nc6 {[%clk 00:24:05]} {[%emt 00:01:23]} e6 {[%clk 00:07:32]} {[%emt
00:03:23]} 30. d6 {[%clk 00:24:11]} {[%emt 00:00:24]} Rd8 {[%clk 00:06:59]}
{[%emt 00:01:04]} 31. Rd4 {[%clk 00:19:08]} {[%emt 00:05:32]} Qxa2 {[%clk
00:05:03]} {[%emt 00:02:26]} 32. Nxd8 {[%clk 00:19:25]} {[%emt 00:00:14]} Rxd8
{[%clk 00:05:32]} 33. d7 {[%clk 00:19:42]} {[%emt 00:00:13]} Qa5 {[%clk
00:04:58]} {[%emt 00:01:04]} 34. Qxa5 {[%clk 00:16:04]} {[%emt 00:04:08]} bxa5
{[%clk 00:05:26]} {[%emt 00:00:02]} 35. Re5 {[%clk 00:16:13]} {[%emt 00:00:20]}
Kf8 {[%clk 00:05:38]} {[%emt 00:00:19]} 36. Rxa5 {[%clk 00:16:42]} {[%emt
00:00:01]} Ke7 {[%clk 00:05:51]} {[%emt 00:00:17]} 37. Rxa7 {[%clk 00:17:09]}
{[%emt 00:00:03]} e5 {[%clk 00:06:14]} {[%emt 00:00:07]} 38. Rd1 {[%clk
00:16:42]} {[%emt 00:00:57]} Be6 {[%clk 00:04:50]} {[%emt 00:01:54]} 39. Bc6
{[%clk 00:15:57]} {[%emt 00:01:15]} Nh5 {[%clk 00:05:16]} {[%emt 00:00:04]} 40.
b4 {[%clk 00:16:11]} {[%emt 00:00:17]} Nf6 {[%clk 00:05:28]} {[%emt 00:00:17]}
41. b5 {[%clk 00:14:57]} {[%emt 00:01:44]} Bxd7 {[%clk 00:03:10]} {[%emt
00:02:49]} 42. b6 {[%clk 00:14:20]} {[%emt 00:01:06]} 1-0

[Event "South Island Championships 2023"]
[Site "Oamaru, New Zealand"]
[Date "????.??.??"]
[Round "7.11"]
[White "Familton, Gregory"]
[Black "Gold, Hamish R"]
[Result "1/2-1/2"]
[TimeControl "90 + 30"]
[WhiteFideId "4317190"]
[BlackFideId "4301579"]
[WhiteElo "1751"]
[BlackElo "1758"]

1. e4 {[%clk 01:30:54]} {[%emt 00:00:02]} e6 {[%clk 01:30:29]} {[%emt
00:00:31]} 2. Nc3 {[%clk 01:31:19]} {[%emt 00:00:06]} d5 {[%clk 01:29:56]}
{[%emt 00:01:03]} 3. Nf3 {[%clk 01:31:45]} {[%emt 00:00:04]} dxe4 {[%clk
01:29:03]} {[%emt 00:01:22]} 4. Nxe4 {[%clk 01:31:59]} {[%emt 00:00:17]} Bd7
{[%clk 01:27:48]} {[%emt 00:01:44]} 5. d4 {[%clk 01:31:54]} {[%emt 00:00:35]}
Bc6 {[%clk 01:26:35]} {[%emt 00:01:43]} 6. Bd3 {[%clk 01:31:23]} {[%emt
00:01:01]} Nf6 {[%clk 01:24:47]} {[%emt 00:02:18]} 7. Nxf6+ {[%clk 01:31:43]}
{[%emt 00:00:11]} Qxf6 {[%clk 01:22:08]} {[%emt 00:03:07]} 8. Bg5 {[%clk
01:32:11]} {[%emt 00:00:03]} Bxf3 {[%clk 01:22:20]} {[%emt 00:00:18]} 9. Qxf3
{[%clk 01:31:32]} {[%emt 00:01:09]} Qxf3 {[%clk 01:21:47]} {[%emt 00:01:01]} 10.
gxf3 {[%clk 01:32:02]} Nc6 {[%clk 01:20:27]} {[%emt 00:01:52]} 11. c3 {[%clk
01:30:19]} {[%emt 00:02:13]} Be7 {[%clk 01:19:59]} {[%emt 00:00:58]} 12. Bf4
{[%clk 01:30:40]} {[%emt 00:00:09]} O-O-O {[%clk 01:18:51]} {[%emt 00:01:38]}
13. Ke2 {[%clk 01:28:49]} {[%emt 00:02:21]} Bd6 {[%clk 01:17:34]} {[%emt
00:01:47]} 14. Bg3 {[%clk 01:28:46]} {[%emt 00:00:34]} h5 {[%clk 01:16:26]}
{[%emt 00:01:37]} 15. Rag1 {[%clk 01:26:36]} {[%emt 00:02:40]} g6 {[%clk
01:15:06]} {[%emt 00:01:50]} 16. h4 {[%clk 01:20:21]} {[%emt 00:06:45]} Ne7
{[%clk 01:11:28]} {[%emt 00:04:07]} 17. Ke3 {[%clk 01:12:40]} {[%emt 00:08:12]}
Rhe8 {[%clk 01:10:13]} {[%emt 00:01:44]} 18. a3 {[%clk 01:05:24]} {[%emt
00:07:47]} c5 {[%clk 01:04:44]} {[%emt 00:05:58]} 19. Bxd6 {[%clk 01:03:17]}
{[%emt 00:02:38]} cxd4+ {[%clk 01:02:27]} {[%emt 00:02:47]} 20. Kxd4 {[%clk
01:02:26]} {[%emt 00:01:22]} Rxd6+ {[%clk 01:02:17]} {[%emt 00:00:39]} 21. Ke4
{[%clk 00:58:36]} {[%emt 00:04:20]} Red8 {[%clk 01:01:35]} {[%emt 00:01:11]} 22.
Rd1 {[%clk 00:58:47]} {[%emt 00:00:20]} Nc6 {[%clk 00:59:51]} {[%emt 00:02:14]}
23. Bc2 {[%clk 00:58:52]} {[%emt 00:00:26]} Rd2 {[%clk 00:59:07]} {[%emt
00:01:12]} 24. Rxd2 {[%clk 00:52:58]} {[%emt 00:06:25]} Rxd2 {[%clk 00:59:27]}
{[%emt 00:00:11]} 25. Ba4 {[%clk 00:53:20]} {[%emt 00:00:07]} Ne7 {[%clk
00:56:07]} {[%emt 00:03:49]} 26. Be8 {[%clk 00:49:38]} {[%emt 00:04:13]} f6
{[%clk 00:56:08]} {[%emt 00:00:28]} 27. Rg1 {[%clk 00:49:34]} {[%emt 00:00:35]}
Rd8 {[%clk 00:55:28]} {[%emt 00:01:10]} 28. Bf7 {[%clk 00:46:28]} {[%emt
00:03:36]} e5 {[%clk 00:54:12]} {[%emt 00:01:46]} 29. Bxg6 {[%clk 00:38:48]}
{[%emt 00:08:11]} Kc7 {[%clk 00:52:41]} {[%emt 00:02:00]} 30. Bxh5 {[%clk
00:32:35]} {[%emt 00:06:43]} Rh8 {[%clk 00:52:35]} {[%emt 00:00:35]} 31. Bf7
{[%clk 00:29:04]} {[%emt 00:04:02]} Rxh4+ {[%clk 00:52:08]} {[%emt 00:00:57]}
32. Ke3 {[%clk 00:26:41]} {[%emt 00:02:53]} Kc6 {[%clk 00:51:05]} {[%emt
00:01:32]} 33. Rg4 {[%clk 00:22:23]} {[%emt 00:04:49]} Rh7 {[%clk 00:49:07]}
{[%emt 00:02:27]} 34. Bb3 {[%clk 00:21:02]} {[%emt 00:01:52]} Rh1 {[%clk
00:46:27]} {[%emt 00:03:09]} 35. Kd2 {[%clk 00:18:05]} {[%emt 00:03:24]} Rh2
{[%clk 00:45:15]} {[%emt 00:01:45]} 36. Ke2 {[%clk 00:17:44]} {[%emt 00:00:52]}
Rh1 {[%clk 00:44:55]} {[%emt 00:00:49]} 37. Rg7 {[%clk 00:16:20]} {[%emt
00:01:54]} Rb1 {[%clk 00:43:32]} {[%emt 00:01:52]} 38. Ba4+ {[%clk 00:15:59]}
{[%emt 00:00:53]} Kd6 {[%clk 00:43:28]} {[%emt 00:00:34]} 39. b3 {[%clk
00:15:39]} {[%emt 00:00:51]} a6 {[%clk 00:43:14]} {[%emt 00:00:43]} 40. c4
{[%clk 00:15:51]} {[%emt 00:00:18]} Ra1 {[%clk 00:42:42]} {[%emt 00:01:00]} 41.
Rf7 {[%clk 00:12:14]} {[%emt 00:04:09]} Ke6 {[%clk 00:41:46]} {[%emt 00:01:25]}
42. Rf8 {[%clk 00:12:25]} {[%emt 00:00:20]} Ra2+ {[%clk 00:41:49]} {[%emt
00:00:26]} 43. Kf1 {[%clk 00:10:10]} {[%emt 00:02:46]} Nf5 {[%clk 00:41:14]}
{[%emt 00:01:05]} 44. Rb8 {[%clk 00:10:05]} {[%emt 00:00:35]} Nd6 {[%clk
00:41:16]} {[%emt 00:00:26]} 45. c5 {[%clk 00:09:55]} {[%emt 00:00:42]} Ra1+
{[%clk 00:40:54]} {[%emt 00:00:52]} 46. Kg2 {[%clk 00:09:33]} {[%emt 00:00:53]}
Nf5 {[%clk 00:38:22]} {[%emt 00:03:00]} 47. Rxb7 {[%clk 00:08:03]} {[%emt
00:02:01]} Nh4+ {[%clk 00:38:45]} {[%emt 00:00:07]} 48. Kg3 {[%clk 00:08:28]}
{[%emt 00:00:05]} Nf5+ {[%clk 00:39:05]} {[%emt 00:00:09]} 49. Kh2 {[%clk
00:08:45]} {[%emt 00:00:14]} Nd4 {[%clk 00:39:03]} {[%emt 00:00:31]} 50. Kg2
{[%clk 00:06:16]} {[%emt 00:03:00]} Kd5 {[%clk 00:37:04]} {[%emt 00:02:29]} 51.
Rb6 {[%clk 00:04:11]} {[%emt 00:02:35]} Kxc5 {[%clk 00:34:32]} {[%emt
00:03:02]} 52. Rxa6 {[%clk 00:02:33]} {[%emt 00:02:09]} Rxa3 {[%clk 00:34:22]}
{[%emt 00:00:38]} 53. Rxf6 {[%clk 00:02:54]} {[%emt 00:00:10]} Nxb3 {[%clk
00:34:21]} {[%emt 00:00:30]} 54. Bxb3 {[%clk 00:02:15]} {[%emt 00:01:10]} Rxb3
{[%clk 00:34:30]} {[%emt 00:00:20]} 55. Re6 {[%clk 00:02:43]} {[%emt 00:00:03]}
Kd5 {[%clk 00:34:31]} {[%emt 00:00:29]} 56. Re8 {[%clk 00:03:12]} Rc3 {[%clk
00:33:47]} {[%emt 00:01:14]} 57. Kg3 {[%clk 00:03:41]} Ra3 {[%clk 00:33:42]}
{[%emt 00:00:34]} 58. Kg4 {[%clk 00:04:07]} {[%emt 00:00:05]} Ra4+ {[%clk
00:33:36]} {[%emt 00:00:35]} 59. Kg3 {[%clk 00:03:44]} {[%emt 00:00:53]} Ra3
{[%clk 00:33:52]} {[%emt 00:00:14]} 60. Rd8+ {[%clk 00:03:28]} {[%emt
00:00:47]} Ke6 {[%clk 00:34:07]} {[%emt 00:00:14]} 61. Rd2 {[%clk 00:02:49]}
{[%emt 00:01:10]} e4 {[%clk 00:34:01]} {[%emt 00:00:36]} 1/2-1/2